[Event "Late Titled Tuesday Blitz February 8 2022"]
[White "Poormosavi, Seyed Kian"]
[Black "Hess, Robert"]
[WhiteFideId "12585807"]
[BlackFideId "2022036"]
[WhiteElo "2116"]
[BlackElo "2557"]
[Result "0-1"]
[Round "01"]
[TimeControl "180+1"]
[Date "2022.02.08"]
[WhiteClock "0:00:02"]
[BlackClock "0:00:04"]

1. e4 {[%clk 0:02:50]}  g6 {[%clk 0:03:00]} 2. Nf3 {[%clk 0:02:49]}  Bg7 {[%clk 0:03:00]} 3. Bc4 {[%clk 0:02:50]}  e6 {[%clk 0:02:59]} 4. O-O {[%clk 0:02:50]}  Ne7 {[%clk 0:03:00]} 5. d4 {[%clk 0:02:50]}  a6 {[%clk 0:02:59]} 6. c3 {[%clk 0:02:41]}  d6 {[%clk 0:02:57]} 7. Bf4 {[%clk 0:02:29]}  Nd7 {[%clk 0:02:56]} 8. Qc1 {[%clk 0:02:26]}  h6 {[%clk 0:02:55]} 9. Nbd2 {[%clk 0:02:25]}  b6 {[%clk 0:02:47]} 10. Re1 {[%clk 0:02:21]}  Bb7 {[%clk 0:02:47]} 11. h3 {[%clk 0:02:17]}  g5 {[%clk 0:02:46]} 12. Bg3 {[%clk 0:02:17]}  Ng6 {[%clk 0:02:46]} 13. d5 {[%clk 0:02:14]}  e5 {[%clk 0:02:39]} 14. Nf1 {[%clk 0:02:14]}  Nf6 {[%clk 0:02:27]} 15. Bd3 {[%clk 0:02:12]}  Nf4 {[%clk 0:02:21]} 16. Bc2 {[%clk 0:02:05]}  Bc8 {[%clk 0:02:17]} 17. Ne3 {[%clk 0:02:01]}  N6h5 {[%clk 0:01:49]} 18. Nh2 {[%clk 0:01:45]}  Bd7 {[%clk 0:01:29]} 19. Nhf1 {[%clk 0:01:44]}  Bf6 {[%clk 0:01:26]} 20. Bh2 {[%clk 0:01:43]}  Qc8 {[%clk 0:01:22]} 21. Bd1 {[%clk 0:01:32]}  Ng7 {[%clk 0:01:06]} 22. Qd2 {[%clk 0:01:18]}  h5 {[%clk 0:01:03]} 23. c4 {[%clk 0:01:13]}  g4 {[%clk 0:00:42]} 24. hxg4 {[%clk 0:00:53]}  hxg4 {[%clk 0:00:42]} 25. Bxf4 {[%clk 0:00:54]}  exf4 {[%clk 0:00:42]} 26. Nf5 {[%clk 0:00:55]}  f3 {[%clk 0:00:22]} 27. gxf3 {[%clk 0:00:54]}  gxf3 {[%clk 0:00:22]} 28. Bxf3 {[%clk 0:00:51]}  Nxf5 {[%clk 0:00:21]} 29. exf5+ {[%clk 0:00:51]}  Kf8 {[%clk 0:00:22]} 30. Ng3 {[%clk 0:00:49]}  Be5 {[%clk 0:00:13]} 31. Rxe5 {[%clk 0:00:43]}  dxe5 {[%clk 0:00:13]} 32. f6 {[%clk 0:00:44]}  Bf5 {[%clk 0:00:10]} 33. Qg5 {[%clk 0:00:42]}  Bg6 {[%clk 0:00:10]} 34. Re1 {[%clk 0:00:40]}  Qh3 {[%clk 0:00:08]} 35. Re3 {[%clk 0:00:15]}  Re8 {[%clk 0:00:07]} 36. Bg2 {[%clk 0:00:11]}  Qh2+ {[%clk 0:00:05]} 37. Kf1 {[%clk 0:00:12]}  Qh4 {[%clk 0:00:05]} 38. Qxh4 {[%clk 0:00:08]}  Rxh4 {[%clk 0:00:06]} 39. b3 {[%clk 0:00:08]}  b5 {[%clk 0:00:06]} 40. c5 {[%clk 0:00:07]}  Rf4 {[%clk 0:00:06]} 41. d6 {[%clk 0:00:06]}  cxd6 {[%clk 0:00:06]} 42. cxd6 {[%clk 0:00:07]}  Rxf6 {[%clk 0:00:06]} 43. Bf3 {[%clk 0:00:06]}  Rxd6 {[%clk 0:00:06]} 44. Kg2 {[%clk 0:00:06]}  f5 {[%clk 0:00:05]} 45. Rc3 {[%clk 0:00:04]}  e4 {[%clk 0:00:05]} 46. Be2 {[%clk 0:00:04]}  f4 {[%clk 0:00:06]} 47. Nh5 {[%clk 0:00:02]}  f3+ {[%clk 0:00:06]} 48. Bxf3 {[%clk 0:00:03]}  exf3+ {[%clk 0:00:06]} 49. Rxf3+ {[%clk 0:00:04]}  Ke7 {[%clk 0:00:05]} 50. Ng7 {[%clk 0:00:04]}  Be4 {[%clk 0:00:04]} 51. Nxe8 {[%clk 0:00:02]}  Kxe8 {[%clk 0:00:04]} 0-1


[Site "https://www.chess.com"]

[Event "Late Titled Tuesday Blitz February 8 2022"]
[White "Pranav, V"]
[Black "Degardin, Sylvain"]
[WhiteFideId "25060783"]
[BlackFideId "20623070"]
[WhiteElo "2349"]
[BlackElo "2156"]
[Result "1-0"]
[Round "01"]
[TimeControl "180+1"]
[Date "2022.02.08"]
[WhiteClock "0:01:09"]
[BlackClock "0:00:02"]

1. e4 {[%clk 0:02:58]}  c5 {[%clk 0:02:59]} 2. Nf3 {[%clk 0:02:57]}  d6 {[%clk 0:02:58]} 3. c3 {[%clk 0:02:56]}  Nf6 {[%clk 0:02:58]} 4. Be2 {[%clk 0:02:57]}  Bd7 {[%clk 0:02:50]} 5. d3 {[%clk 0:02:56]}  g6 {[%clk 0:02:39]} 6. O-O {[%clk 0:02:55]}  Bg7 {[%clk 0:02:38]} 7. Re1 {[%clk 0:02:55]}  O-O {[%clk 0:02:36]} 8. Bf1 {[%clk 0:02:54]}  Bg4 {[%clk 0:02:30]} 9. Nbd2 {[%clk 0:02:53]}  Nc6 {[%clk 0:02:27]} 10. h3 {[%clk 0:02:53]}  Bxf3 {[%clk 0:02:25]} 11. Nxf3 {[%clk 0:02:54]}  Rb8 {[%clk 0:02:18]} 12. d4 {[%clk 0:02:51]}  Nd7 {[%clk 0:02:17]} 13. Be3 {[%clk 0:02:48]}  b5 {[%clk 0:02:13]} 14. a3 {[%clk 0:02:48]}  a5 {[%clk 0:02:11]} 15. Qd2 {[%clk 0:02:31]}  Qc7 {[%clk 0:01:57]} 16. Bh6 {[%clk 0:02:21]}  Rfc8 {[%clk 0:01:54]} 17. Rac1 {[%clk 0:02:08]}  Qb6 {[%clk 0:01:47]} 18. e5 {[%clk 0:01:55]}  dxe5 {[%clk 0:01:14]} 19. Bxg7 {[%clk 0:01:47]}  Kxg7 {[%clk 0:01:10]} 20. d5 {[%clk 0:01:42]}  Nd8 {[%clk 0:00:57]} 21. Nxe5 {[%clk 0:01:40]}  Nxe5 {[%clk 0:00:56]} 22. Rxe5 {[%clk 0:01:41]}  Qf6 {[%clk 0:00:43]} 23. Rce1 {[%clk 0:01:40]}  Rc7 {[%clk 0:00:43]} 24. R5e4 {[%clk 0:01:38]}  c4 {[%clk 0:00:38]} 25. g4 {[%clk 0:01:31]}  Nb7 {[%clk 0:00:37]} 26. g5 {[%clk 0:01:30]}  Qd6 {[%clk 0:00:36]} 27. Qd4+ {[%clk 0:01:19]}  Kg8 {[%clk 0:00:35]} 28. Rh4 {[%clk 0:01:20]}  Nc5 {[%clk 0:00:14]} 29. Bg2 {[%clk 0:01:18]}  Rd8 {[%clk 0:00:14]} 30. Rh6 {[%clk 0:01:12]}  Rcd7 {[%clk 0:00:11]} 31. Qh4 {[%clk 0:01:11]}  Nd3 {[%clk 0:00:02]} 32. Rxh7 {[%clk 0:01:09]} 1-0


[Site "https://www.chess.com"]

[Event "Late Titled Tuesday Blitz February 8 2022"]
[White "Prohorov, Olexandr"]
[Black "Lopez Mulet, Inigo"]
[WhiteFideId "14105578"]
[BlackFideId "22235620"]
[WhiteElo "1993"]
[BlackElo "2315"]
[Result "0-1"]
[Round "01"]
[TimeControl "180+1"]
[Date "2022.02.09"]
[WhiteClock "0:00:31"]
[BlackClock "0:01:34"]

1. e4 {[%clk 0:03:00]}  g6 {[%clk 0:02:59]} 2. d4 {[%clk 0:03:00]}  Bg7 {[%clk 0:03:00]} 3. Nc3 {[%clk 0:03:00]}  c5 {[%clk 0:03:01]} 4. Be3 {[%clk 0:02:52]}  Qa5 {[%clk 0:03:01]} 5. Nf3 {[%clk 0:02:45]}  Nf6 {[%clk 0:03:01]} 6. Qd2 {[%clk 0:02:44]}  Ng4 {[%clk 0:02:59]} 7. Bg5 {[%clk 0:02:28]}  cxd4 {[%clk 0:02:58]} 8. Nd5 {[%clk 0:02:27]}  Qxd2+ {[%clk 0:02:55]} 9. Kxd2 {[%clk 0:02:21]}  Nxf2 {[%clk 0:02:36]} 10. Nc7+ {[%clk 0:02:17]}  Kd8 {[%clk 0:02:36]} 11. Nxa8 {[%clk 0:02:18]}  Nxh1 {[%clk 0:02:34]} 12. Ke1 {[%clk 0:02:10]}  b6 {[%clk 0:02:28]} 13. Bc4 {[%clk 0:01:46]}  Bb7 {[%clk 0:02:26]} 14. Ke2 {[%clk 0:01:36]}  Bxa8 {[%clk 0:02:22]} 15. Rxh1 {[%clk 0:01:36]}  h6 {[%clk 0:02:20]} 16. Bf4 {[%clk 0:01:33]}  d6 {[%clk 0:02:12]} 17. Rd1 {[%clk 0:01:25]}  Bxe4 {[%clk 0:02:08]} 18. Nxd4 {[%clk 0:01:18]}  Bxg2 {[%clk 0:02:01]} 19. Nb5 {[%clk 0:01:04]}  Bh3 {[%clk 0:01:49]} 20. Ke3 {[%clk 0:01:00]}  g5 {[%clk 0:01:41]} 21. Bg3 {[%clk 0:00:58]}  f5 {[%clk 0:01:41]} 22. Be1 {[%clk 0:00:51]}  f4+ {[%clk 0:01:39]} 23. Kf2 {[%clk 0:00:49]}  Nc6 {[%clk 0:01:37]} 24. b3 {[%clk 0:00:33]}  a6 {[%clk 0:01:35]} 25. Nc3 {[%clk 0:00:32]}  Bd4+ {[%clk 0:01:35]} 26. Ke2 {[%clk 0:00:31]}  Bg4+ {[%clk 0:01:34]} 0-1


[Site "https://www.chess.com"]

[Event "Late Titled Tuesday Blitz February 8 2022"]
[White "Proleiko, Julian"]
[Black "Nihal Sarin"]
[WhiteFideId "30900255"]
[BlackFideId "25092340"]
[WhiteElo "2116"]
[BlackElo "2705"]
[Result "0-1"]
[Round "01"]
[TimeControl "180+1"]
[Date "2022.02.08"]
[WhiteClock "0:00:07"]
[BlackClock "0:00:50"]

1. e4 {[%clk 0:03:00]}  e5 {[%clk 0:02:59]} 2. Nf3 {[%clk 0:03:01]}  Nc6 {[%clk 0:03:00]} 3. Nc3 {[%clk 0:03:00]}  Nf6 {[%clk 0:02:59]} 4. Bb5 {[%clk 0:03:00]}  Bd6 {[%clk 0:02:58]} 5. d3 {[%clk 0:02:59]}  Ne7 {[%clk 0:02:57]} 6. O-O {[%clk 0:02:40]}  Ng6 {[%clk 0:02:54]} 7. a4 {[%clk 0:02:35]}  c6 {[%clk 0:02:53]} 8. Bc4 {[%clk 0:02:35]}  O-O {[%clk 0:02:53]} 9. Re1 {[%clk 0:02:17]}  Bc7 {[%clk 0:02:53]} 10. Bb3 {[%clk 0:02:13]}  h6 {[%clk 0:02:51]} 11. Ne2 {[%clk 0:02:05]}  d5 {[%clk 0:02:49]} 12. Ng3 {[%clk 0:02:05]}  Re8 {[%clk 0:02:49]} 13. h3 {[%clk 0:02:04]}  Be6 {[%clk 0:02:49]} 14. Bd2 {[%clk 0:01:57]}  Qd7 {[%clk 0:02:45]} 15. Bc3 {[%clk 0:01:53]}  Rad8 {[%clk 0:02:27]} 16. exd5 {[%clk 0:01:46]}  Bxd5 {[%clk 0:02:25]} 17. Ne4 {[%clk 0:01:18]}  Nxe4 {[%clk 0:02:20]} 18. dxe4 {[%clk 0:01:18]}  Bxb3 {[%clk 0:02:20]} 19. cxb3 {[%clk 0:01:19]}  Qe6 {[%clk 0:02:20]} 20. Qc2 {[%clk 0:01:18]}  Nf4 {[%clk 0:02:19]} 21. Rad1 {[%clk 0:01:15]}  Qg6 {[%clk 0:02:18]} 22. g3 {[%clk 0:01:07]}  Nxh3+ {[%clk 0:02:17]} 23. Kh2 {[%clk 0:01:06]}  Qh5 {[%clk 0:02:14]} 24. Kg2 {[%clk 0:01:06]}  Nf4+ {[%clk 0:02:14]} 25. gxf4 {[%clk 0:01:02]}  Qg4+ {[%clk 0:02:14]} 26. Kf1 {[%clk 0:01:03]}  Qxf3 {[%clk 0:02:13]} 27. Rxd8 {[%clk 0:01:02]}  Rxd8 {[%clk 0:02:13]} 28. fxe5 {[%clk 0:01:00]}  Rd3 {[%clk 0:02:13]} 29. b4 {[%clk 0:00:50]}  Qh1+ {[%clk 0:02:09]} 30. Ke2 {[%clk 0:00:50]}  Qxe4+ {[%clk 0:02:10]} 31. Kf1 {[%clk 0:00:50]}  Qh1+ {[%clk 0:02:10]} 32. Ke2 {[%clk 0:00:50]}  Qf3+ {[%clk 0:02:11]} 33. Kf1 {[%clk 0:00:50]}  h5 {[%clk 0:01:47]} 34. Kg1 {[%clk 0:00:44]}  Qg4+ {[%clk 0:01:36]} 35. Kf1 {[%clk 0:00:42]}  Qh3+ {[%clk 0:01:36]} 36. Ke2 {[%clk 0:00:41]}  Qf3+ {[%clk 0:01:36]} 37. Kf1 {[%clk 0:00:41]}  h4 {[%clk 0:01:37]} 38. e6 {[%clk 0:00:38]}  fxe6 {[%clk 0:01:35]} 39. Qb3 {[%clk 0:00:38]}  Qh3+ {[%clk 0:01:20]} 40. Ke2 {[%clk 0:00:35]}  Qf3+ {[%clk 0:01:16]} 41. Kf1 {[%clk 0:00:35]}  Rd5 {[%clk 0:01:14]} 42. Re3 {[%clk 0:00:27]}  Qh1+ {[%clk 0:01:11]} 43. Ke2 {[%clk 0:00:27]}  Qg1 {[%clk 0:01:04]} 44. b5 {[%clk 0:00:24]}  Bb6 {[%clk 0:00:59]} 45. bxc6 {[%clk 0:00:16]}  Bxe3 {[%clk 0:00:59]} 46. Kxe3 {[%clk 0:00:16]}  bxc6 {[%clk 0:00:55]} 47. Qb8+ {[%clk 0:00:15]}  Kh7 {[%clk 0:00:55]} 48. Qxa7 {[%clk 0:00:16]}  Qg5+ {[%clk 0:00:53]} 49. Ke2 {[%clk 0:00:16]}  Qg4+ {[%clk 0:00:53]} 50. Ke3 {[%clk 0:00:15]}  h3 {[%clk 0:00:52]} 51. Qf7 {[%clk 0:00:07]}  h2 {[%clk 0:00:50]} 0-1


[Site "https://www.chess.com"]

[Event "Late Titled Tuesday Blitz February 8 2022"]
[White "Przybylski, Wojciech"]
[Black "Mekhitarian, Krikor Sevag"]
[WhiteFideId "1117599"]
[BlackFideId "2107660"]
[WhiteElo "2133"]
[BlackElo "2598"]
[Result "0-1"]
[Round "01"]
[TimeControl "180+1"]
[Date "2022.02.09"]
[WhiteClock "0:00:10"]
[BlackClock "0:00:12"]

1. e4 {[%clk 0:02:59]}  c5 {[%clk 0:02:58]} 2. Nf3 {[%clk 0:02:58]}  g6 {[%clk 0:02:59]} 3. c4 {[%clk 0:02:55]}  Nc6 {[%clk 0:02:58]} 4. Nc3 {[%clk 0:02:55]}  Bg7 {[%clk 0:02:58]} 5. Be2 {[%clk 0:02:55]}  d6 {[%clk 0:02:57]} 6. O-O {[%clk 0:02:55]}  Bg4 {[%clk 0:02:54]} 7. d3 {[%clk 0:02:53]}  e6 {[%clk 0:02:53]} 8. Be3 {[%clk 0:02:50]}  Nge7 {[%clk 0:02:52]} 9. Ne1 {[%clk 0:02:48]}  Bxe2 {[%clk 0:02:52]} 10. Qxe2 {[%clk 0:02:47]}  O-O {[%clk 0:02:52]} 11. a3 {[%clk 0:02:45]}  a6 {[%clk 0:02:52]} 12. Rb1 {[%clk 0:02:44]}  Rb8 {[%clk 0:02:52]} 13. Nc2 {[%clk 0:02:40]}  b5 {[%clk 0:02:51]} 14. h3 {[%clk 0:02:33]}  bxc4 {[%clk 0:02:19]} 15. dxc4 {[%clk 0:02:32]}  Rb3 {[%clk 0:02:20]} 16. Nd1 {[%clk 0:02:29]}  Qb8 {[%clk 0:02:17]} 17. Bc1 {[%clk 0:02:20]}  Nd4 {[%clk 0:02:10]} 18. Nxd4 {[%clk 0:02:19]}  Bxd4 {[%clk 0:02:10]} 19. Qc2 {[%clk 0:02:18]}  Nc6 {[%clk 0:02:02]} 20. Kh1 {[%clk 0:02:14]}  Qb7 {[%clk 0:02:01]} 21. f4 {[%clk 0:02:03]}  Bg7 {[%clk 0:01:57]} 22. Rf3 {[%clk 0:01:47]}  Rxf3 {[%clk 0:01:36]} 23. gxf3 {[%clk 0:01:48]}  Nd4 {[%clk 0:01:36]} 24. Qd3 {[%clk 0:01:43]}  a5 {[%clk 0:01:33]} 25. b4 {[%clk 0:01:34]}  axb4 {[%clk 0:01:29]} 26. axb4 {[%clk 0:01:35]}  cxb4 {[%clk 0:01:21]} 27. Bb2 {[%clk 0:01:32]}  Qb6 {[%clk 0:01:21]} 28. Bc3 {[%clk 0:01:20]}  Rc8 {[%clk 0:00:51]} 29. Rxb4 {[%clk 0:01:04]}  Qc5 {[%clk 0:00:51]} 30. Rb7 {[%clk 0:00:56]}  h5 {[%clk 0:00:46]} 31. Rd7 {[%clk 0:00:38]}  Qxc4 {[%clk 0:00:37]} 32. Qxc4 {[%clk 0:00:36]}  Rxc4 {[%clk 0:00:38]} 33. Rxd6 {[%clk 0:00:33]}  Nxf3 {[%clk 0:00:38]} 34. Rd8+ {[%clk 0:00:31]}  Kh7 {[%clk 0:00:38]} 35. Rd3 {[%clk 0:00:16]}  Nh4 {[%clk 0:00:19]} 36. Re3 {[%clk 0:00:13]}  Bxc3 {[%clk 0:00:13]} 37. Nxc3 {[%clk 0:00:13]}  Rd4 {[%clk 0:00:13]} 38. e5 {[%clk 0:00:12]}  Rxf4 {[%clk 0:00:11]} 39. Ne4 {[%clk 0:00:12]}  Kg7 {[%clk 0:00:10]} 40. Nf6 {[%clk 0:00:06]}  Nf3 {[%clk 0:00:08]} 41. Nd7 {[%clk 0:00:04]}  Nd4 {[%clk 0:00:07]} 42. Rd3 {[%clk 0:00:03]}  Nc6 {[%clk 0:00:06]} 43. Kg2 {[%clk 0:00:03]}  Re4 {[%clk 0:00:05]} 44. Rc3 {[%clk 0:00:01]}  Nxe5 {[%clk 0:00:05]} 45. Nc5 {[%clk 0:00:02]}  Rc4 {[%clk 0:00:05]} 46. Rxc4 {[%clk 0:00:01]}  Nxc4 {[%clk 0:00:06]} 47. Ne4 {[%clk 0:00:01]}  Ne5 {[%clk 0:00:06]} 48. Nd6 {[%clk 0:00:02]}  Nd7 {[%clk 0:00:06]} 49. Ne8+ {[%clk 0:00:02]}  Kf8 {[%clk 0:00:06]} 50. Nd6 {[%clk 0:00:03]}  Ke7 {[%clk 0:00:07]} 51. Ne4 {[%clk 0:00:03]}  f5 {[%clk 0:00:07]} 52. Nc3 {[%clk 0:00:03]}  Kf6 {[%clk 0:00:07]} 53. Kf3 {[%clk 0:00:03]}  g5 {[%clk 0:00:07]} 54. Kg3 {[%clk 0:00:03]}  Ne5 {[%clk 0:00:08]} 55. Nb5 {[%clk 0:00:03]}  h4+ {[%clk 0:00:08]} 56. Kg2 {[%clk 0:00:03]}  Ng6 {[%clk 0:00:08]} 57. Nd6 {[%clk 0:00:03]}  Nf4+ {[%clk 0:00:09]} 58. Kh2 {[%clk 0:00:02]}  e5 {[%clk 0:00:09]} 59. Nb5 {[%clk 0:00:02]}  e4 {[%clk 0:00:09]} 60. Nd4 {[%clk 0:00:02]}  Ne6 {[%clk 0:00:09]} 61. Nb3 {[%clk 0:00:01]}  Ke5 {[%clk 0:00:09]} 62. Nd2 {[%clk 0:00:01]}  f4 {[%clk 0:00:09]} 63. Nc4+ {[%clk 0:00:02]}  Kd5 {[%clk 0:00:09]} 64. Nd6 {[%clk 0:00:03]}  Kxd6 {[%clk 0:00:10]} 65. Kg2 {[%clk 0:00:03]}  Ke5 {[%clk 0:00:10]} 66. Kf2 {[%clk 0:00:03]}  Kd4 {[%clk 0:00:10]} 67. Kg2 {[%clk 0:00:04]}  Ke3 {[%clk 0:00:10]} 68. Kf1 {[%clk 0:00:04]}  Kf3 {[%clk 0:00:10]} 69. Kg1 {[%clk 0:00:05]}  Ke2 {[%clk 0:00:10]} 70. Kh2 {[%clk 0:00:06]}  f3 {[%clk 0:00:10]} 71. Kg1 {[%clk 0:00:07]}  e3 {[%clk 0:00:11]} 72. Kh2 {[%clk 0:00:07]}  f2 {[%clk 0:00:11]} 73. Kg2 {[%clk 0:00:08]}  f1=Q+ {[%clk 0:00:11]} 74. Kh2 {[%clk 0:00:09]}  Qf2+ {[%clk 0:00:12]} 75. Kh1 {[%clk 0:00:09]}  g4 {[%clk 0:00:11]} 76. hxg4 {[%clk 0:00:09]}  Nf4 {[%clk 0:00:11]} 77. g5 {[%clk 0:00:10]}  Qg2# {[%clk 0:00:12]} 0-1


[Site "https://www.chess.com"]

[Event "Late Titled Tuesday Blitz February 8 2022"]
[White "Pulvett Marin, Daniel Eduardo"]
[Black "Chabris, Christopher"]
[WhiteFideId "3900410"]
[BlackFideId "2005263"]
[WhiteElo "2413"]
[BlackElo "2304"]
[Result "1-0"]
[Round "01"]
[TimeControl "180+1"]
[Date "2022.02.09"]
[WhiteClock "0:01:39"]
[BlackClock "0:00:27"]

1. d4 {[%clk 0:03:00]}  d5 {[%clk 0:02:59]} 2. c4 {[%clk 0:03:00]}  c6 {[%clk 0:02:59]} 3. Nc3 {[%clk 0:03:00]}  Nf6 {[%clk 0:03:00]} 4. e3 {[%clk 0:03:00]}  e6 {[%clk 0:03:00]} 5. Nf3 {[%clk 0:03:00]}  Nbd7 {[%clk 0:03:00]} 6. Qc2 {[%clk 0:03:01]}  Bd6 {[%clk 0:02:59]} 7. Bd3 {[%clk 0:03:01]}  dxc4 {[%clk 0:02:58]} 8. Bxc4 {[%clk 0:03:01]}  b5 {[%clk 0:02:58]} 9. Bd3 {[%clk 0:03:02]}  Bb7 {[%clk 0:02:59]} 10. O-O {[%clk 0:03:01]}  O-O {[%clk 0:02:59]} 11. a3 {[%clk 0:03:00]}  a5 {[%clk 0:02:57]} 12. e4 {[%clk 0:02:58]}  e5 {[%clk 0:02:57]} 13. dxe5 {[%clk 0:02:59]}  Nxe5 {[%clk 0:02:56]} 14. Nxe5 {[%clk 0:02:59]}  Bxe5 {[%clk 0:02:56]} 15. h3 {[%clk 0:02:59]}  h6 {[%clk 0:02:51]} 16. Rd1 {[%clk 0:02:52]}  Qc7 {[%clk 0:02:44]} 17. Be3 {[%clk 0:02:49]}  Rfe8 {[%clk 0:02:27]} 18. Rac1 {[%clk 0:02:45]}  Qe7 {[%clk 0:02:04]} 19. Ne2 {[%clk 0:02:38]}  Rad8 {[%clk 0:01:48]} 20. f4 {[%clk 0:02:29]}  Bb8 {[%clk 0:01:24]} 21. Bc5 {[%clk 0:02:16]}  Qe6 {[%clk 0:01:13]} 22. e5 {[%clk 0:02:14]}  Nd5 {[%clk 0:01:05]} 23. Bh7+ {[%clk 0:02:04]}  Kh8 {[%clk 0:01:04]} 24. Bf5 {[%clk 0:02:05]}  Ne3 {[%clk 0:00:35]} 25. Bxe3 {[%clk 0:01:55]}  Rxd1+ {[%clk 0:00:32]} 26. Rxd1 {[%clk 0:01:56]}  Qa2 {[%clk 0:00:30]} 27. Nc3 {[%clk 0:01:39]}  Qc4 {[%clk 0:00:27]} 28. b3 {[%clk 0:01:39]} 1-0


[Site "https://www.chess.com"]

[Event "Late Titled Tuesday Blitz February 8 2022"]
[White "Sarana, Alexey"]
[Black "Musovic, Armin"]
[WhiteFideId "24133795"]
[BlackFideId "939935"]
[WhiteElo "2665"]
[BlackElo "2250"]
[Result "1-0"]
[Round "01"]
[TimeControl "180+1"]
[Date "2022.02.08"]
[WhiteClock "0:01:16"]
[BlackClock "0:00:10"]

1. d4 {[%clk 0:02:58]}  d5 {[%clk 0:02:59]} 2. c4 {[%clk 0:02:58]}  c5 {[%clk 0:02:58]} 3. Nf3 {[%clk 0:02:55]}  Nf6 {[%clk 0:02:58]} 4. cxd5 {[%clk 0:02:53]}  cxd4 {[%clk 0:02:59]} 5. Qxd4 {[%clk 0:02:52]}  Qxd5 {[%clk 0:02:59]} 6. Qxd5 {[%clk 0:02:48]}  Nxd5 {[%clk 0:02:58]} 7. a3 {[%clk 0:02:48]}  Bf5 {[%clk 0:02:53]} 8. Nbd2 {[%clk 0:02:45]}  Nf6 {[%clk 0:02:51]} 9. Nd4 {[%clk 0:02:43]}  Bd7 {[%clk 0:02:51]} 10. Nc4 {[%clk 0:02:44]}  Nc6 {[%clk 0:02:39]} 11. Nb5 {[%clk 0:02:42]}  Rc8 {[%clk 0:02:39]} 12. Bf4 {[%clk 0:02:40]}  e5 {[%clk 0:02:36]} 13. Nbd6+ {[%clk 0:02:30]}  Bxd6 {[%clk 0:02:28]} 14. Nxd6+ {[%clk 0:02:31]}  Kf8 {[%clk 0:02:20]} 15. Nxc8 {[%clk 0:02:30]}  Bxc8 {[%clk 0:02:10]} 16. Bg5 {[%clk 0:02:28]}  Ne4 {[%clk 0:02:08]} 17. Be3 {[%clk 0:02:28]}  f5 {[%clk 0:02:08]} 18. f3 {[%clk 0:02:28]}  Nf6 {[%clk 0:02:08]} 19. Rc1 {[%clk 0:02:27]}  Be6 {[%clk 0:02:05]} 20. Bg5 {[%clk 0:02:26]}  e4 {[%clk 0:02:02]} 21. e3 {[%clk 0:02:25]}  Nd5 {[%clk 0:01:59]} 22. Bc4 {[%clk 0:02:22]}  h6 {[%clk 0:01:54]} 23. Bf4 {[%clk 0:02:17]}  g5 {[%clk 0:01:45]} 24. Bd6+ {[%clk 0:02:14]}  Kf7 {[%clk 0:01:45]} 25. fxe4 {[%clk 0:02:14]}  Nxe3 {[%clk 0:01:43]} 26. Bxe6+ {[%clk 0:01:52]}  Kxe6 {[%clk 0:01:44]} 27. Bc5 {[%clk 0:01:51]}  Nxg2+ {[%clk 0:01:41]} 28. Kf2 {[%clk 0:01:51]}  Nf4 {[%clk 0:01:41]} 29. exf5+ {[%clk 0:01:52]}  Kxf5 {[%clk 0:01:41]} 30. Rhd1 {[%clk 0:01:53]}  Re8 {[%clk 0:01:30]} 31. Rc2 {[%clk 0:01:44]}  Ne5 {[%clk 0:01:22]} 32. Bxa7 {[%clk 0:01:39]}  Ng4+ {[%clk 0:00:37]} 33. Kf1 {[%clk 0:01:37]}  Ne3+ {[%clk 0:00:36]} 34. Bxe3 {[%clk 0:01:36]}  Rxe3 {[%clk 0:00:37]} 35. Rd7 {[%clk 0:01:34]}  Rb3 {[%clk 0:00:36]} 36. a4 {[%clk 0:01:28]}  h5 {[%clk 0:00:34]} 37. Rc5+ {[%clk 0:01:15]}  Kg4 {[%clk 0:00:33]} 38. Rb5 {[%clk 0:01:16]}  Rf3+ {[%clk 0:00:32]} 39. Ke1 {[%clk 0:01:16]}  Re3+ {[%clk 0:00:20]} 40. Kd1 {[%clk 0:01:15]}  Re4 {[%clk 0:00:16]} 41. a5 {[%clk 0:01:14]}  Ra4 {[%clk 0:00:14]} 42. Rdxb7 {[%clk 0:01:14]}  Ra1+ {[%clk 0:00:14]} 43. Kc2 {[%clk 0:01:14]}  Rh1 {[%clk 0:00:15]} 44. a6 {[%clk 0:01:14]}  Rxh2+ {[%clk 0:00:15]} 45. Kb1 {[%clk 0:01:14]}  Ne2 {[%clk 0:00:12]} 46. a7 {[%clk 0:01:13]}  Rh1+ {[%clk 0:00:11]} 47. Ka2 {[%clk 0:01:14]}  Nc1+ {[%clk 0:00:11]} 48. Ka3 {[%clk 0:01:14]}  Rh3+ {[%clk 0:00:11]} 49. b3 {[%clk 0:01:15]}  Nd3 {[%clk 0:00:11]} 50. Rb4+ {[%clk 0:01:16]}  Kf5 {[%clk 0:00:10]} 51. a8=Q {[%clk 0:01:16]}  Rh1 {[%clk 0:00:10]} 52. R7b5+ {[%clk 0:01:16]} 1-0


[Site "https://www.chess.com"]

[Event "Late Titled Tuesday Blitz February 8 2022"]
[White "Sargsyan, Anna M."]
[Black "volunteers1998"]
[WhiteFideId "13308130"]
[WhiteElo "2271"]
[BlackElo "2218"]
[Result "0-1"]
[Round "01"]
[TimeControl "180+1"]
[Date "2022.02.09"]
[WhiteClock "0:00:09"]
[BlackClock "0:00:04"]

1. d4 {[%clk 0:02:59]}  f5 {[%clk 0:02:59]} 2. c4 {[%clk 0:02:58]}  Nf6 {[%clk 0:02:58]} 3. Nc3 {[%clk 0:02:58]}  g6 {[%clk 0:02:57]} 4. Qc2 {[%clk 0:02:41]}  Bg7 {[%clk 0:02:57]} 5. e4 {[%clk 0:02:37]}  d6 {[%clk 0:02:51]} 6. Nf3 {[%clk 0:02:36]}  O-O {[%clk 0:02:44]} 7. e5 {[%clk 0:02:18]}  dxe5 {[%clk 0:02:35]} 8. dxe5 {[%clk 0:02:17]}  Ng4 {[%clk 0:02:36]} 9. Bf4 {[%clk 0:02:15]}  Nc6 {[%clk 0:02:23]} 10. Rd1 {[%clk 0:02:11]}  Qe8 {[%clk 0:02:22]} 11. Nb5 {[%clk 0:01:55]}  Ncxe5 {[%clk 0:02:16]} 12. Nxe5 {[%clk 0:01:46]}  Nxe5 {[%clk 0:02:14]} 13. Nxc7 {[%clk 0:01:45]}  Qc6 {[%clk 0:02:08]} 14. Nxa8 {[%clk 0:01:45]}  Be6 {[%clk 0:02:06]} 15. Nc7 {[%clk 0:01:11]}  Qxc7 {[%clk 0:02:03]} 16. Be2 {[%clk 0:01:11]}  Qc5 {[%clk 0:01:53]} 17. O-O {[%clk 0:01:08]}  Nc6 {[%clk 0:01:36]} 18. Be3 {[%clk 0:01:05]}  Qa5 {[%clk 0:01:33]} 19. b3 {[%clk 0:01:02]}  Rd8 {[%clk 0:01:27]} 20. Rxd8+ {[%clk 0:01:02]}  Qxd8 {[%clk 0:01:27]} 21. Rd1 {[%clk 0:01:02]}  Qc7 {[%clk 0:01:21]} 22. h3 {[%clk 0:00:55]}  Be5 {[%clk 0:01:15]} 23. Bf3 {[%clk 0:00:49]}  Kf7 {[%clk 0:01:11]} 24. Qe2 {[%clk 0:00:47]}  Bf6 {[%clk 0:01:07]} 25. Bd5 {[%clk 0:00:45]}  Bxd5 {[%clk 0:01:01]} 26. Rxd5 {[%clk 0:00:46]}  e5 {[%clk 0:00:56]} 27. Qd1 {[%clk 0:00:44]}  Ke7 {[%clk 0:00:52]} 28. Bc5+ {[%clk 0:00:44]}  Ke8 {[%clk 0:00:50]} 29. Bd6 {[%clk 0:00:40]}  Qc8 {[%clk 0:00:49]} 30. b4 {[%clk 0:00:39]}  a6 {[%clk 0:00:47]} 31. b5 {[%clk 0:00:39]}  axb5 {[%clk 0:00:45]} 32. cxb5 {[%clk 0:00:39]}  Ne7 {[%clk 0:00:42]} 33. Bxe7 {[%clk 0:00:38]}  Kxe7 {[%clk 0:00:40]} 34. a4 {[%clk 0:00:37]}  e4 {[%clk 0:00:32]} 35. a5 {[%clk 0:00:33]}  Qe6 {[%clk 0:00:25]} 36. Qb3 {[%clk 0:00:31]}  f4 {[%clk 0:00:22]} 37. Qa3+ {[%clk 0:00:24]}  Kf7 {[%clk 0:00:20]} 38. Qd6 {[%clk 0:00:24]}  e3 {[%clk 0:00:16]} 39. Qc7+ {[%clk 0:00:15]}  Be7 {[%clk 0:00:14]} 40. Qxf4+ {[%clk 0:00:14]}  Kg8 {[%clk 0:00:12]} 41. Re5 {[%clk 0:00:11]}  exf2+ {[%clk 0:00:10]} 42. Kxf2 {[%clk 0:00:09]}  Qa2+ {[%clk 0:00:07]} 43. Re2 {[%clk 0:00:09]}  Bc5+ {[%clk 0:00:04]} 0-1


[Site "https://www.chess.com"]